bitfinex/quotes_ETHUSD_20240731
["timestamp","ask_amount","ask_price","bid_price","bid_amount"]
[1722447544877,7.57992729,3318.4,3318.3,0.0632289]
[1722447545139,7.57992729,3318.4,3318.1,0.06331322]
[1722447545344,7.57992729,3318.4,3318.2,0.36799602]
[1722447545488,7.57992729,3318.4,3318.2,0.43126708]
[1722447546094,7.57992729,3318.4,3318.2,0.06327106]
[1722447546341,7.57992729,3318.4,3318.0,3.616647]
[1722447546633,7.57992729,3318.4,3318.3,0.0632289]
[1722447546634,0.10992729,3318.4,3318.3,0.0632289]
[1722447546809,0.10992729,3318.4,3318.0,3.616647]
[1722447547011,0.10992729,3318.4,3318.3,0.0632289]
[1722447547215,0.10992729,3318.4,3318.0,3.616647]
[1722447547419,0.10992729,3318.4,3318.3,0.0632289]
[1722447547628,0.10992729,3318.4,3318.1,3.3754347]
[1722447548898,0.10992729,3318.4,3318.2,0.06327106]
[1722447549545,0.10992729,3318.4,3318.2,3.13719974]
[1722447549737,0.10992729,3318.4,3318.2,0.06327106]
[1722447549945,0.10992729,3318.4,3318.2,0.40714164]
[1722447554051,0.10992729,3318.4,3318.2,0.46740633]
[1722447554457,0.10992729,3318.4,3318.2,0.06327106]
[1722447554810,2.3632,3318.3,3317.7,3.01408]
[1722447555357,2.3632,3318.3,3317.8,0.06305397]
[1722447555560,2.3632,3318.3,3317.5,3.01431]
[1722447555723,2.3632,3318.3,3317.9,0.0630118]
[1722447556064,2.3632,3318.3,3317.6,3.315591]
[1722447556655,2.3632,3318.3,3317.7,0.06309614]
[1722447557751,2.3632,3318.3,3317.7,0.12337064]
[1722447558556,2.3632,3318.3,3317.7,0.06309614]
[1722447559111,2.3632,3318.3,3317.7,0.12337136]
[1722447563486,2.3632,3318.3,3317.7,0.06309614]
[1722447563487,2.4251,3318.2,3317.7,0.06309614]
[1722447563849,2.4251,3318.2,3317.3,3.01445]
[1722447564048,2.4251,3318.2,3317.8,0.0631244]
[1722447564255,2.4251,3318.2,3317.3,3.01445]
[1722447564448,2.4251,3318.2,3317.4,0.301445]
[1722447564635,2.4251,3318.2,3317.4,0.36473809]
[1722447565046,3.01391,3318.0,3317.4,0.06329309]
[1722447565277,2.3823,3317.9,3317.4,0.06329309]
[1722447565500,2.3823,3317.9,3317.5,0.06349321]
[1722447565863,2.3823,3317.9,3317.1,7.29]
[1722447566383,3.01405,3317.8,3317.2,0.06361975]
[1722447566552,2.277,3317.6,3317.2,0.06361975]
[1722447566758,3.01437,3317.5,3316.4,3.01525]
[1722447567054,3.01381,3318.1,3316.8,3.01493]
[1722447567055,2.277,3317.6,3316.8,3.01493]
[1722447567487,2.277,3317.6,3316.9,3.13676505]
[1722447567891,2.277,3317.6,3317.0,0.06028783]
[1722447568093,2.277,3317.6,3317.1,0.31367605]
[1722447568499,2.277,3317.6,3317.1,0.37520439]
[1722447570080,2.277,3317.6,3317.1,0.06152834]
[1722447570464,2.277,3317.6,3316.8,3.01494]
[1722447570682,2.277,3317.6,3317.2,0.05965187]
[1722447570921,2.277,3317.6,3316.4,2.674]
[1722447571213,2.4354,3317.7,3316.5,6.56521]
[1722447571416,2.4354,3317.7,3316.6,0.923921]
[1722447571567,3.01422,3317.6,3316.6,3.939001]
[1722447571770,3.01422,3317.6,3316.7,0.05986282]
[1722447572894,2.4354,3317.7,3316.7,3.13514635]
[1722447573722,5.44956,3317.7,3316.7,3.13514635]
[1722447573879,5.44956,3317.7,3316.8,0.40590673]
[1722447573880,3.01423,3317.6,3316.8,0.40590673]
[1722447574198,5.44762,3317.5,3316.9,0.05977843]
[1722447574511,5.44762,3317.5,3316.5,3.56521]
[1722447574712,5.44762,3317.5,3316.5,0.55]
[1722447574893,5.44762,3317.5,3316.6,0.05990501]
[1722447575609,5.44762,3317.5,3316.6,3.07503501]
[1722447575782,5.44762,3317.5,3316.7,0.3625035]
[1722447576166,5.44762,3317.5,3316.8,0.05982062]
[1722447576370,2.4333,3317.5,3316.8,0.05982062]
[1722447581129,5.44766,3317.5,3316.8,0.05982062]
[1722447581899,2.4333,3317.5,3316.6,3.01507]
[1722447582097,2.4333,3317.5,3316.9,0.05977843]
[1722447582500,2.4333,3317.5,3316.7,0.356507]
[1722447582703,5.44762,3317.5,3316.7,0.356507]
[1722447582906,5.44762,3317.5,3316.5,0.55]
[1722447583107,3.01441,3317.4,3316.8,0.05982062]
[1722447583405,2.281,3317.3,3316.6,1.115]
[1722447583607,5.29555,3317.3,3316.6,1.115]
[1722447583833,5.29555,3317.3,3316.7,0.05993595]
[1722447584248,2.281,3317.3,3316.7,0.05993595]
[1722447587815,5.29551,3317.3,3316.7,0.05993595]
[1722447588322,2.281,3317.3,3316.7,0.05993595]
[1722447590460,5.29554,3317.3,3316.7,0.05993595]
[1722447590830,3.01459,3317.2,3316.7,0.05993595]
[1722447591045,2.281,3317.3,3316.7,0.05993595]
[1722447593357,5.2955,3317.3,3316.7,0.05993595]
[1722447594154,2.281,3317.3,3316.7,0.05993595]
[1722447595732,2.810545,3317.3,3316.7,0.05993595]
[1722447596371,2.281,3317.3,3316.7,0.05993595]
[1722447597838,8.29556,3317.3,3316.7,0.05993595]
[1722447598177,3.0146,3317.2,3316.8,0.06007381]
[1722447598526,3.0146,3317.2,3316.2,4.13044]
[1722447598722,3.0146,3317.2,3316.3,0.0602848]
[1722447599074,3.0146,3317.2,3316.3,3.0756748]
[1722447599217,5.281,3317.3,3316.3,0.0602848]
[1722447599422,5.281,3317.3,3316.6,1.115]
[1722447599617,5.281,3317.3,3316.7,0.060116]
[1722447599821,8.29557,3317.3,3316.7,0.060116]
[1722447600564,8.29557,3317.3,3316.4,4.13029]
[1722447600763,8.29557,3317.3,3316.4,4.844862]
[1722447600966,8.29557,3317.3,3316.5,0.0602004]
[1722447601266,5.281,3317.3,3316.5,0.0602004]
[1722447601479,8.2955,3317.3,3316.5,0.0602004]
[1722447602222,11.31007,3317.3,3316.5,0.0602004]
[1722447602446,8.2955,3317.3,3316.5,0.0602004]
[1722447602661,5.281,3317.3,3316.5,0.0602004]
[1722447602823,8.29551,3317.3,3316.5,0.0602004]
[1722447603035,9.426497,3317.3,3316.5,0.0602004]
[1722447603238,6.411987,3317.3,3316.5,0.0602004]
[1722447603554,8.29551,3317.3,3316.5,0.0602004]
[1722447603761,3.0146,3317.2,3316.5,0.0602004]
[1722447604137,8.29551,3317.3,3316.5,0.0602004]
[1722447604138,8.2955,3317.3,3316.5,0.0602004]
[1722447604341,5.281,3317.3,3316.5,0.0602004]
[1722447604633,0.47279245,3317.7,3316.8,4.12989]
[1722447604935,2.4476,3317.6,3317.0,1.115]
[1722447605121,2.4476,3317.6,3316.9,0.06004568]
[1722447605354,2.4476,3317.6,3317.1,0.05996131]
[1722447605595,2.4476,3317.6,3317.0,0.06000349]
[1722447605763,3.01414,3317.7,3317.2,0.05991912]
[1722447605963,3.01414,3317.7,3316.8,4.12995]
[1722447605964,7.47,3317.8,3317.3,0.05987694]
[1722447606181,3.0,3317.7,3317.3,0.05987694]
[1722447606402,3.0,3317.7,3317.0,6.5839]
[1722447606697,3.0,3317.7,3317.1,0.05996131]
[1722447606849,7.47,3317.8,3317.2,4.12956]
[1722447607251,7.47,3317.8,3317.3,0.05987694]
[1722447607449,7.47,3317.8,3317.3,0.47882063]
[1722447608393,7.47,3317.8,3317.3,0.05987694]
[1722447609134,15.18384,3318.1,3317.0,3.5692]
[1722447609135,3.014,3317.9,3317.0,3.5692]
[1722447609283,2.3619,3317.9,3317.4,0.05977566]
[1722447609461,2.3619,3317.9,3317.0,6.58395]
[1722447609813,2.3619,3317.9,3317.5,0.05973349]
[1722447610153,2.3619,3317.9,3317.6,0.05961536]
[1722447610355,3.0,3318.1,3317.3,3.01449]
[1722447610677,3.0,3318.1,3317.4,0.47264871]
[1722447611213,6.01379,3318.1,3317.4,0.05969971]
[1722447611558,6.01379,3318.1,3317.5,0.05965753]
[1722447611859,6.01379,3318.1,3317.2,4.12958]
[1722447612170,3.0,3318.1,3317.6,0.05961536]
[1722447612512,3.0,3318.1,3317.7,0.05957319]
[1722447612658,4.881334,3318.1,3317.7,0.05957319]
[1722447612871,4.881334,3318.1,3317.2,4.12957]
[1722447613070,3.0,3318.1,3317.8,0.05953102]
[1722447613319,3.0,3318.1,3317.2,7.14404]
[1722447613670,3.0,3318.1,3317.3,3.07421189]
[1722447614168,6.01378,3318.1,3317.3,0.05974189]
[1722447614595,3.0,3318.1,3317.3,0.05974189]
[1722447614781,3.0,3318.2,3317.3,3.07418189]
[1722447614992,3.0,3318.2,3317.4,0.42494671]
[1722447615317,6.01369,3318.2,3317.5,0.05965753]
[1722447615615,6.01369,3318.2,3317.3,3.01448]
[1722447615820,6.01369,3318.2,3317.4,0.05969971]
[1722447617320,3.0,3318.2,3317.4,0.05969971]
[1722447617519,8.32959,3318.3,3317.4,0.05969971]
[1722447617694,9.17489573,3318.3,3317.4,0.05969971]
[1722447618217,9.17489573,3318.3,3317.3,3.01443]
[1722447618418,9.17489573,3318.3,3317.4,0.05969971]
[1722447618629,6.16130573,3318.3,3317.4,3.01439]
[1722447618769,6.16130573,3318.3,3317.5,0.05965753]
[1722447618976,3.01369,3318.2,3317.5,0.05965753]
[1722447619220,3.01369,3318.2,3317.2,4.1295]
[1722447619221,3.0,3318.1,3317.2,4.1295]
[1722447619636,3.0,3318.1,3317.3,0.05974189]
[1722447622045,3.0,3318.1,3317.4,3.0144]
[1722447622204,3.0,3318.2,3317.5,0.0596238]
[1722447622560,6.01369,3318.2,3317.5,0.0596238]
[1722447622765,3.01382,3318.1,3317.5,0.0596238]
[1722447623051,3.01382,3318.1,3317.2,1.115]
[1722447623234,3.0,3318.0,3317.2,2.074855]
[1722447624057,3.01378,3318.1,3317.3,0.05970816]
[1722447624344,3.0,3318.0,3317.3,0.05970816]
[1722447625008,3.0,3318.0,3317.3,3.07419816]
[1722447625330,6.01372,3318.2,3317.3,3.07419816]
[1722447625737,6.01372,3318.2,3317.3,3.58910348]
[1722447627873,3.0,3318.2,3317.3,3.58905348]
[1722447628023,5.316,3318.3,3317.3,0.05970816]
[1722447628367,3.01368,3318.2,3317.3,3.07418816]
[1722447628665,3.0,3318.1,3317.3,3.07418816]
[1722447631181,6.01377,3318.1,3317.3,0.05970816]
[1722447631477,0.601377,3318.0,3317.3,0.05970816]
[1722447631679,3.615247,3318.0,3317.3,0.05970816]
[1722447631886,2.4405,3317.8,3317.3,0.05970816]
[1722447632094,2.4405,3317.8,3317.3,0.09073785]
[1722447632377,2.891277,3318.0,3317.1,3.01467]
[1722447632579,2.891277,3318.0,3317.4,0.09074066]
[1722447632878,0.5891277,3317.9,3317.5,0.09069755]
[1722447633387,0.5891277,3317.9,3317.1,3.01467]
[1722447633388,0.5891277,3317.9,3317.2,1.115]
[1722447633569,0.5891277,3317.9,3317.6,0.09065444]
[1722447633765,0.5891277,3317.9,3317.2,1.115]
[1722447633937,5.905187,3318.0,3317.7,0.09061133]
[1722447634142,5.905187,3318.0,3317.2,1.115]
[1722447634338,5.905187,3318.0,3317.8,0.09056823]
[1722447634569,2.891277,3318.0,3317.2,1.115]
[1722447634770,2.2899,3318.0,3317.2,1.115]
[1722447635085,2.2899,3318.0,3317.3,0.09078377]
[1722447635289,5.2899,3318.0,3317.3,0.09078377]
[1722447635826,3.0,3318.0,3317.4,2.398]
[1722447635976,3.0,3318.0,3317.5,0.09069755]
[1722447636180,5.2785,3318.3,3317.6,1.115]
[1722447636382,6.32524759,3318.3,3317.7,0.09061133]
[1722447636925,3.31161759,3318.3,3317.7,0.09061133]
[1722447637330,6.32520759,3318.3,3317.7,0.09061133]
[1722447638936,0.5826759,3318.4,3318.2,1.115]
[1722447639285,0.5826759,3318.4,3318.3,5.53808368]
[1722447639685,0.10992729,3318.4,3318.3,8.55167368]
[1722447641920,0.10992729,3318.4,3318.3,11.56526368]
[1722447642125,0.10992729,3318.4,3318.3,15.11526368]
[1722447642454,0.10992729,3318.4,3318.3,13.21667368]
[1722447643015,0.10992729,3318.4,3318.3,16.23026368]
[1722447644463,0.10992729,3318.4,3318.3,51.23026368]
[1722447647417,0.10992729,3318.4,3318.3,16.23026368]
[1722447647619,0.10992729,3318.4,3318.3,18.15466005]
[1722447647805,0.10992729,3318.4,3318.3,53.15466005]
[1722447649151,0.10992729,3318.4,3318.3,18.15466005]
[1722447653107,0.10992729,3318.4,3318.3,13.47607005]
[1722447653333,0.10992729,3318.4,3318.3,8.02828005]
[1722447653666,0.10992729,3318.4,3318.3,5.02828005]
[1722447653850,0.10992729,3318.4,3318.3,3.10388368]
[1722447654003,0.10992729,3318.4,3318.3,0.09029368]
[1722447654398,0.10992729,3318.4,3318.1,3.01368]
[1722447654655,0.10992729,3318.4,3318.2,0.08407239]
[1722447655043,0.10992729,3318.4,3318.0,3.01385]
[1722447655210,0.10992729,3318.4,3318.1,0.0840143]
[1722447656553,0.10992729,3318.4,3317.9,4.12888]
[1722447656710,0.10992729,3318.4,3318.2,0.08397121]
[1722447656912,0.10992729,3318.4,3318.0,0.412888]
[1722447656913,0.10992729,3318.4,3318.1,3.01376]
[1722447657112,0.10992729,3318.4,3318.3,0.08392812]
[1722447657312,0.10992729,3318.4,3318.2,0.08397121]
[1722447657510,0.10992729,3318.4,3318.3,4.27278674]
[1722447657744,0.10992729,3318.4,3318.3,0.51120679]
[1722447657958,0.10992729,3318.4,3318.3,7.2863724]
[1722447658183,0.10992729,3318.4,3318.3,7.77610812]
[1722447659324,0.10992729,3318.4,3318.3,13.78969812]
[1722447660206,0.10992729,3318.4,3318.3,10.77610812]
[1722447661574,0.10992729,3318.4,3318.3,13.78969812]
[1722447662075,0.10992729,3318.4,3318.3,15.40765793]
[1722447663736,0.10992729,3318.4,3318.3,18.72334793]
[1722447666788,0.10992729,3318.4,3318.3,14.29265793]
[1722447667024,0.10992729,3318.4,3318.3,15.40765793]
[1722447667142,0.10992729,3318.4,3318.3,18.42124793]
[1722447667342,0.32037627,3319.6,3319.5,3.0125]
[1722447667542,0.32037627,3319.6,3319.5,7.69]
[1722447667787,0.32037627,3319.6,3319.5,0.08350957]
[1722447668138,0.32037627,3319.6,3318.9,8.405]
[1722447668139,2.61977627,3319.6,3318.9,8.405]
[1722447668342,2.61977627,3319.6,3319.5,0.08330442]
[1722447668539,2.61977627,3319.6,3318.9,7.29]
[1722447668781,2.61977627,3319.6,3319.5,0.08330442]
[1722447668956,5.32716,3319.5,3318.6,1.115]
[1722447669296,2.3048,3319.4,3318.7,0.08364897]
[1722447669495,5.3174,3319.4,3318.7,0.08364897]
[1722447669651,5.3174,3319.4,3318.5,3.0134]
[1722447669987,2.3048,3319.4,3318.6,1.19869205]
[1722447670162,2.3048,3319.4,3318.6,4.21200205]
[1722447670367,2.3048,3319.4,3318.8,1.115]
[1722447670746,2.3048,3319.4,3318.9,0.08356282]
[1722447670999,2.3048,3319.4,3319.0,1.115]
[1722447671166,2.3048,3319.4,3318.9,0.08356282]
[1722447671498,2.56731763,3319.4,3319.0,0.08351975]
[1722447671841,5.57991763,3319.4,3318.3,3.01353]
[1722447672047,5.57991763,3319.4,3318.4,3.64726822]
[1722447672681,5.57991763,3319.4,3318.5,3.01339]
[1722447672977,5.57991763,3319.4,3318.6,0.08369205]
[1722447673189,0.55799176,3319.3,3318.6,0.08369205]
[1722447673846,0.55799176,3319.3,3318.4,0.55]
[1722447674147,0.55799176,3319.3,3318.5,3.0971211]
[1722447674348,2.56731763,3319.4,3318.6,0.06025911]
[1722447674349,2.3048,3319.4,3318.6,0.06025911]
[1722447674710,0.32037627,3319.6,3319.3,3.01262]
[1722447674890,0.32037627,3319.6,3319.4,3.07281225]
[1722447675048,0.005,3319.6,3319.5,3.0125]
[1722447675256,0.005,3319.6,3319.5,3.09579038]
[1722447675867,0.005,3319.6,3319.5,6.16853238]
[1722447676175,0.005,3319.6,3319.5,3.15603238]
[1722447676347,0.005,3319.6,3319.5,3.77289362]
[1722447676552,0.005,3319.6,3319.5,0.70015162]
[1722447676766,0.005,3319.6,3319.5,0.08329038]
[1722447677220,0.005,3319.6,3318.8,3.0]
[1722447677426,0.005,3319.6,3319.5,0.08313868]
[1722447677607,0.005,3319.6,3318.7,3.56318]
[1722447677928,0.005,3319.6,3318.9,3.01302]
[1722447678219,0.005,3319.6,3318.8,3.09656016]
[1722447678376,0.005,3319.6,3319.0,0.08335401]
[1722447678575,0.005,3320.1,3318.7,0.55]
[1722447678576,0.005,3320.1,3319.5,3.0125]
[1722447678890,0.005,3320.1,3320.0,9.03612]
[1722447679089,0.005,3320.1,3320.0,13.83986666]
[1722447680239,0.005,3320.1,3320.0,14.14196666]
[1722447680738,0.005,3320.1,3320.0,54.63980666]
[1722447681437,3.00987,3322.4,3320.0,54.63980666]
[1722447681438,2.3787,3322.1,3320.2,3.31396]
[1722447681570,2.3787,3322.1,3320.9,2.672]
[1722447681774,2.3787,3322.1,3321.5,3.01068]
[1722447682219,2.3787,3322.1,3321.6,3.09241792]
[1722447682429,2.3787,3322.1,3321.6,0.08182792]
[1722447682773,2.3787,3322.1,3321.1,3.01103]
[1722447682975,5.6482158,3321.7,3321.6,0.08182792]
[1722447683224,5.6482158,3321.7,3320.3,3.0]
[1722447683225,3.0106,3321.6,3320.6,3.0115]
[1722447683398,3.20253738,3321.7,3320.7,3.01141]
[1722447683599,3.20253738,3321.7,3320.7,3.08758213]
[1722447683778,0.1449158,3321.7,3320.8,0.06021955]
[1722447683979,2.4928,3321.6,3320.8,3.01129]
[1722447684181,2.4928,3321.6,3320.9,0.07608608]
[1722447685028,2.4928,3321.6,3320.7,3.01138]
[1722447685176,2.4928,3321.6,3321.0,0.07604306]
[1722447685383,2.75657158,3321.6,3320.8,3.01132]
[1722447685611,2.75657158,3321.6,3321.1,0.07600004]
[1722447685924,2.75657158,3321.6,3321.2,0.07595703]
[1722447686429,2.75657158,3321.6,3320.8,3.01127]
[1722447686624,2.75657158,3321.6,3320.6,3.01149]
[1722447686625,2.4928,3321.6,3321.3,0.0734838]
[1722447686934,2.4928,3321.6,3320.4,3.01165]
[1722447687223,3.01078,3321.4,3320.3,3.01176]
[1722447687426,2.414,3321.3,3320.5,0.07382798]
[1722447687638,2.414,3321.3,3320.4,3.08554102]
[1722447687777,2.414,3321.3,3320.6,0.07378495]
[1722447687977,2.414,3321.3,3320.5,0.07382798]
[1722447688175,2.414,3321.3,3320.7,0.07374192]
[1722447688423,2.8152418,3321.3,3320.7,3.01139]
[1722447688732,2.414,3321.3,3320.8,0.0736989]
[1722447689074,2.414,3321.3,3320.6,3.0115]
[1722447689277,2.414,3321.3,3320.7,0.07374192]
[1722447689473,2.414,3321.3,3320.5,3.01153]
[1722447689677,2.414,3321.3,3320.6,3.08527495]
[1722447690281,2.414,3321.3,3320.6,0.07378495]
[1722447690500,2.956476,3321.3,3320.5,3.01159]
[1722447690742,2.956476,3321.3,3320.6,0.07378495]
[1722447691194,3.01103,3321.2,3320.6,0.07378495]
[1722447691373,3.01103,3321.2,3320.0,6.01199]
[1722447691374,3.01106,3321.1,3320.0,6.01196]
[1722447691582,3.01106,3321.1,3320.7,0.07374192]
[1722447691800,3.01106,3321.1,3320.1,3.01194]
[1722447692083,3.01126,3320.9,3319.9,3.01212]
[1722447692291,2.793706,3321.0,3320.0,3.08378605]
[1722447692488,2.4926,3321.0,3320.2,3.01185]
[1722447692736,2.4926,3321.0,3320.3,0.07179202]
[1722447693386,2.4926,3321.0,3320.3,3.08349202]
[1722447693590,2.4926,3321.0,3320.3,3.0117]
[1722447693819,2.4926,3321.0,3320.4,0.07174898]
[1722447694016,2.4926,3321.0,3320.4,3.08341898]
[1722447694235,2.4926,3321.0,3320.3,3.0117]
[1722447694429,2.4926,3321.0,3320.5,0.07170595]
[1722447694588,2.4926,3321.0,3320.6,3.01148]
[1722447694787,2.4926,3321.0,3320.4,0.07174898]
[1722447694788,2.4926,3321.0,3320.7,3.0114]
[1722447695246,2.4969,3321.5,3320.8,3.08286686]
[1722447695425,2.4969,3321.5,3320.8,0.07157686]
[1722447695785,2.4969,3321.5,3320.7,3.01134]
[1722447695984,2.4969,3321.5,3320.9,0.07153384]
[1722447696198,2.4969,3321.5,3320.7,3.01134]
[1722447696199,5.02613758,3321.5,3320.8,0.07157686]
[1722447696399,5.02613758,3321.5,3320.7,3.01134]
[1722447696693,2.4969,3321.5,3320.9,3.01119]
[1722447697515,2.4969,3321.5,3321.0,3.01112]
[1722447697830,2.4969,3321.5,3320.8,3.01125]
[1722447698432,2.4969,3321.5,3320.9,3.08275384]
[1722447698639,2.4969,3321.5,3320.9,0.07153384]
[1722447698851,3.50808158,3321.5,3320.9,0.07153384]
[1722447699135,2.4818,3321.2,3320.2,6.01182]
[1722447699337,5.49281,3321.2,3320.1,7.29]
[1722447699633,5.49281,3321.2,3320.3,0.07179202]
[1722447699634,2.4818,3321.2,3320.3,0.07179202]
[1722447699841,2.4617,3321.0,3320.2,0.07183506]
[1722447699989,2.4617,3321.0,3320.4,0.07174898]
[1722447700336,2.4826,3320.8,3319.8,3.01221]
[1722447700539,2.4826,3320.8,3319.6,2.672]
[1722447700707,2.4826,3320.8,3320.4,3.01161]
[1722447700906,7.47,3321.2,3320.5,0.07170595]
[1722447701229,2.4245,3321.1,3320.4,0.06022668]
[1722447701586,5.43555,3321.1,3320.1,3.01188]
[1722447702007,2.4245,3321.1,3320.3,3.01176]
[1722447702409,2.4245,3321.1,3320.4,0.13197821]
[1722447703141,6.726164,3321.1,3320.4,0.07174898]
[1722447703447,6.726154,3321.1,3320.4,0.07174898]
[1722447703607,6.726154,3321.1,3319.8,3.3021]
[1722447703807,6.726154,3321.1,3319.6,7.29]
[1722447703808,3.01162,3320.5,3319.6,7.29]
[1722447704012,1.290544,3321.1,3319.6,7.29]
[1722447704013,3.01185,3320.3,3319.6,7.29]
[1722447704340,3.01202,3320.1,3319.7,0.07209493]
[1722447704649,3.01191,3320.2,3319.7,0.07209493]
[1722447704811,3.01196,3320.1,3319.7,0.07209493]
[1722447705012,3.01196,3320.1,3319.0,3.01291]
[1722447705013,3.01193,3320.2,3319.1,3.01284]
[1722447705208,3.01193,3320.2,3319.2,3.08044553]
[1722447705410,2.364,3320.4,3319.3,3.07286568]
[1722447705753,2.364,3320.4,3319.6,3.01241]
[1722447705937,2.364,3320.4,3319.6,3.07265182]
[1722447706107,2.364,3320.4,3319.7,0.06752023]
[1722447706765,2.364,3320.4,3319.8,3.01222]
[1722447707052,2.364,3320.4,3319.7,0.06752023]
[1722447707053,2.364,3320.4,3319.9,0.30797402]
[1722447707259,2.364,3320.4,3319.9,0.06743412]
[1722447707407,2.364,3320.4,3319.7,0.06023875]
[1722447707611,2.364,3320.4,3319.8,0.06747717]
[1722447707914,5.37572,3320.4,3319.4,3.01259]
[1722447708252,2.364,3320.4,3319.5,3.69032514]
[1722447708562,10.48157,3320.6,3320.0,3.01203]
[1722447708563,7.47,3320.6,3320.0,3.01203]
[1722447708855,2.3388,3320.8,3320.3,3.01177]
[1722447709055,7.47,3321.1,3320.4,0.06721891]
[1722447709213,3.01133,3320.8,3320.4,0.06721891]
[1722447709555,3.01133,3320.8,3319.7,6.0245]
[1722447709556,2.2997,3320.6,3319.7,6.0245]
[1722447709761,2.2997,3320.6,3319.8,0.0602323]
[1722447709978,2.2997,3320.6,3319.8,0.12770947]
[1722447710254,2.2997,3320.6,3319.8,0.06747717]
[1722447710408,5.31121,3320.6,3319.6,3.0124]
[1722447710606,5.31121,3320.6,3319.7,0.12775853]
[1722447710904,2.2997,3320.6,3319.7,0.06752023]
[1722447711061,2.2997,3320.6,3319.2,3.60932855]
[1722447711267,3.01166,3320.5,3319.5,3.01249]
[1722447711430,3.01166,3320.5,3319.6,0.06756328]
[1722447712747,2.2997,3320.6,3319.8,3.01217]
[1722447712949,2.2997,3320.6,3319.6,0.12780359]
[1722447712950,2.2997,3320.6,3320.1,3.01194]
[1722447713157,3.0,3321.0,3320.2,0.06022972]
[1722447713333,3.0,3321.0,3320.2,0.12753471]
[1722447713334,4.10658348,3321.0,3320.2,0.12753471]
[1722447713536,3.0,3321.0,3320.3,0.06022944]
[1722447714296,3.0,3321.0,3320.3,3.07198944]
[1722447714433,3.0,3321.0,3320.4,0.06721891]
[1722447714634,7.47,3321.1,3320.4,3.01167]
[1722447714849,7.47,3321.1,3320.5,0.06717588]
[1722447715051,7.47,3321.1,3320.6,3.38557824]
[1722447715254,15.18065,3321.6,3320.6,3.38557824]
[1722447715255,2.4338158,3321.7,3320.7,0.06716522]
[1722447715583,5.4443458,3321.7,3320.7,0.06716522]
[1722447715740,5.4443458,3321.7,3320.8,3.01131]
[1722447715940,2.4338158,3321.7,3320.8,3.01131]
[1722447716191,2.4338158,3321.7,3320.9,0.12729702]
[1722447716334,2.4338158,3321.7,3321.0,3.01114]
[1722447716537,2.4338158,3321.7,3321.1,3.07121781]
[1722447716734,2.4338158,3321.7,3321.2,3.01094]
[1722447717050,0.1449158,3321.7,3321.3,3.0777671]
[1722447717256,0.1449158,3321.7,3321.3,3.13798015]
[1722447717457,0.1449158,3321.7,3321.3,0.0669071]
[1722447717639,0.1449158,3321.7,3320.8,6.02258]
[1722447717840,0.1449158,3321.7,3320.3,6.01175]
[1722447717841,0.1449158,3321.7,3320.9,0.66933717]
[1722447718193,0.1449158,3321.7,3321.0,3.62127312]
[1722447718351,0.1449158,3321.7,3321.1,3.01098]
[1722447718562,0.1449158,3321.7,3321.2,0.06021098]
[1722447718766,0.1449158,3321.7,3321.1,0.06699313]
[1722447718957,0.1449158,3321.7,3321.3,0.0669071]
[1722447719161,0.1449158,3321.7,3321.2,3.13811109]
[1722447719390,0.1449158,3321.7,3321.4,0.06686409]
[1722447719711,0.1449158,3321.7,3321.0,3.56107]
[1722447719712,0.1449158,3321.7,3321.5,0.06682108]
[1722447719988,0.1449158,3321.7,3321.1,0.06021062]
[1722447720193,0.1449158,3321.7,3321.6,0.06677807]
[1722447720391,0.1449158,3321.7,3321.1,3.49359448]
[1722447720561,0.1449158,3321.7,3321.6,0.06667481]
[1722447720740,0.1449158,3321.7,3321.1,0.06021062]
[1722447720939,0.1449158,3321.7,3321.6,0.06647814]
[1722447721598,0.1449158,3321.7,3321.1,0.06021062]
[1722447721777,0.1449158,3321.7,3321.2,0.66323506]
[1722447721960,0.1449158,3321.7,3321.3,0.06021066]
[1722447722159,0.1449158,3321.7,3321.2,0.06665018]
[1722447722363,0.1449158,3321.7,3321.4,0.06656415]
[1722447722680,0.1449158,3321.7,3321.5,0.06652115]
[1722447723060,0.1449158,3321.7,3321.3,0.06021067]
[1722447723265,0.1449158,3321.7,3321.4,0.37367922]
[1722447723459,0.1449158,3321.7,3321.4,0.06656415]
[1722447723848,0.1449158,3321.7,3321.1,3.07118068]
[1722447724163,0.1449158,3321.7,3321.2,3.62752018]
[1722447724473,0.1449158,3321.7,3321.3,3.07107011]
[1722447724681,0.1449158,3321.7,3321.4,0.06656415]
[1722447726057,0.1449158,3321.7,3320.5,9.6476]
[1722447726284,0.1449158,3321.7,3321.2,3.01094]
[1722447726450,0.1449158,3321.7,3321.5,3.01062]
[1722447726645,0.1449158,3321.7,3321.6,0.12637563]
[1722447726846,0.1449158,3321.7,3321.6,3.13696563]
[1722447727047,0.1449158,3321.7,3321.6,0.06617111]
[1722447727249,0.1449158,3321.7,3320.9,3.01121]
[1722447727452,2.4393,3321.6,3321.0,3.13776971]
[1722447727704,0.1449158,3321.7,3321.2,2.4925]
[1722447727864,0.1449158,3321.7,3321.6,3.01059]
[1722447728064,0.1449158,3321.7,3321.6,3.68689594]
[1722447728273,0.1449158,3321.7,3321.6,0.67630594]
[1722447728468,0.1449158,3321.7,3321.6,0.06610135]
[1722447728669,0.1449158,3321.7,3321.3,3.01081]
[1722447729001,0.1449158,3321.7,3321.4,0.6161483]
[1722447729157,0.1449158,3321.7,3321.5,0.06020643]
[1722447729671,0.1449158,3321.7,3321.6,6.14744875]
[1722447729893,0.1449158,3321.7,3321.6,3.62665229]
[1722447730088,0.1449158,3321.7,3321.6,0.06606229]
[1722447730394,0.1449158,3321.7,3321.3,6.311941]
[1722447730606,0.1449158,3321.7,3321.6,0.06606508]
[1722447730773,0.1449158,3321.7,3320.9,3.3133]
[1722447730992,0.1449158,3321.7,3321.6,0.06606508]
[1722447731318,0.1449158,3321.7,3321.6,0.06603439]
[1722447731525,0.1449158,3321.7,3321.3,3.01081]
[1722447731818,0.1449158,3321.7,3321.4,0.0661204]
[1722447732192,0.1449158,3321.7,3320.9,3.31329]
[1722447732388,0.1449158,3321.7,3321.5,0.06607739]